bitfinex-derivatives/quotes_BTCF0:USTF0_20241227
["timestamp","ask_amount","ask_price","bid_price","bid_amount"]
[1735312891215,0.242,94833.0,94814.0,0.052795]
[1735312891401,0.242,94833.0,94790.0,0.24819714]
[1735312891602,0.242,94833.0,94790.0,0.55119714]
[1735312891804,0.242,94833.0,94823.0,0.05279]
[1735312892004,0.003,94834.0,94832.0,0.052784]
[1735312892310,0.00707429,94842.0,94822.0,0.001]
[1735312892507,0.052788,94826.0,94822.0,0.001]
[1735312892704,0.05279,94824.0,94822.0,0.001]
[1735312892904,0.1186,94832.0,94823.0,0.006]
[1735312893102,0.1186,94832.0,94826.0,0.052789]
[1735312893310,0.1186,94832.0,94823.0,0.006]
[1735312893506,0.052793,94820.0,94805.0,0.0528]
[1735312893809,0.052787,94829.0,94811.0,0.052797]
[1735312894001,0.1258,94831.0,94823.0,0.002]
[1735312894419,0.052786,94830.0,94823.0,0.002]
[1735312894713,0.052786,94830.0,94814.0,0.052795]
[1735312894907,0.003,94820.0,94793.0,0.052807]
[1735312895107,0.003,94820.0,94793.0,0.052808]
[1735312895413,0.003,94820.0,94790.0,0.24819714]
[1735312895714,0.003,94820.0,94818.0,0.052794]
[1735312896415,0.004,94820.0,94818.0,0.052794]
[1735312896826,0.001,94820.0,94818.0,0.052794]
[1735312897115,0.009,94820.0,94818.0,0.053794]
[1735312897618,0.015,94820.0,94818.0,0.054794]
[1735312897910,0.00711393,94839.0,94835.0,0.052786]
[1735312898111,0.24819714,94850.0,94818.0,0.002]
[1735312898320,0.24819714,94830.0,94780.0,0.24819714]
[1735312898520,0.052794,94820.0,94805.0,0.052802]
[1735312898718,0.052794,94820.0,94764.0,0.1164]
[1735312898719,0.052787,94834.0,94803.0,0.052803]
[1735312898913,0.05279,94828.0,94816.0,0.052796]
[1735312899107,0.052797,94815.0,94800.0,0.052805]
[1735312899307,0.006,94820.0,94780.0,0.24819714]
[1735312899508,0.006,94820.0,94800.0,0.24819714]
[1735312899713,0.12666463,94838.0,94805.0,0.001]
[1735312900016,0.1196,94838.0,94835.0,0.001]
[1735312900406,0.12662356,94838.0,94832.0,0.052787]
[1735312900812,0.12662356,94838.0,94800.0,0.24819714]
[1735312900813,0.052787,94834.0,94800.0,0.24819714]
[1735312901118,0.052787,94834.0,94800.0,0.54819714]
[1735312901316,0.12762356,94838.0,94828.0,0.05279]
[1735312901512,0.12762356,94838.0,94800.0,0.24819714]
[1735312901712,0.052787,94833.0,94800.0,0.24819714]
[1735312901912,0.052787,94833.0,94820.0,0.052794]
[1735312902118,0.12862356,94838.0,94820.0,0.24819714]
[1735312902316,0.1216,94838.0,94820.0,0.54819714]
[1735312902621,0.001,94838.0,94837.0,0.052785]
[1735312902920,0.18339355,94870.0,94849.0,0.052778]
[1735312903313,0.18339355,94870.0,94820.0,0.25419714]
[1735312903510,0.052767,94869.0,94840.0,0.24819714]
[1735312903715,0.0070997,94870.0,94865.0,0.052769]
[1735312903911,0.246,94871.0,94854.0,0.052775]
[1735312904224,0.002,94870.0,94841.0,0.052782]
[1735312904525,0.40742462,94870.0,94841.0,0.052782]
[1735312904716,0.052773,94859.0,94840.0,0.052783]
[1735312904914,0.10742462,94870.0,94840.0,0.052783]
[1735312904915,0.10742462,94870.0,94840.0,0.24819714]
[1735312905120,0.002,94870.0,94848.0,0.052778]
[1735312905324,0.12,94869.0,94841.0,0.001]
[1735312905510,0.22542351,94869.0,94841.0,0.001]
[1735312905715,0.52542351,94869.0,94841.0,0.001]
[1735312905916,0.008,94859.0,94800.0,0.24819714]
[1735312906115,0.052779,94849.0,94792.0,0.05281]
[1735312906417,0.052779,94849.0,94800.0,0.052806]
[1735312906418,0.052797,94817.0,94800.0,0.052806]
[1735312906717,0.052795,94821.0,94804.0,0.052804]
[1735312906912,0.2456,94820.0,94804.0,0.052804]
[1735312907112,0.2456,94820.0,94775.0,0.1884414]
[1735312907430,0.24819714,94810.0,94775.0,0.1884414]
[1735312907719,0.24819714,94800.0,94751.0,0.00056]
[1735312907916,0.052797,94817.0,94744.0,0.22424972]
[1735312907917,0.24819714,94780.0,94744.0,0.22424972]
[1735312908119,0.052824,94769.0,94753.0,0.052832]
[1735312908316,0.052825,94767.0,94744.0,0.22424972]
[1735312908519,0.34789357,94779.0,94754.0,0.052832]
[1735312908721,0.24819714,94770.0,94744.0,0.22424972]
[1735312908925,0.10549357,94778.0,94744.0,0.22424972]
[1735312909224,0.052819,94777.0,94744.0,0.22424972]
[1735312909522,0.001,94767.0,94758.0,0.052829]
[1735312909727,0.001,94767.0,94744.0,0.23324972]
[1735312909926,0.001,94767.0,94765.0,0.052825]
[1735312910322,0.002,94767.0,94765.0,0.052825]
[1735312911023,0.001,94770.0,94765.0,0.001]
[1735312911413,0.18339355,94811.0,94765.0,0.301]
[1735312911620,0.18339355,94811.0,94780.0,0.24819714]
[1735312911820,0.18339355,94811.0,94803.0,0.052804]
[1735312912120,0.18339355,94811.0,94807.0,0.052802]
[1735312912421,0.18339355,94811.0,94810.0,0.052801]
[1735312913129,0.009,94811.0,94810.0,0.052801]
[1735312914219,0.009,94811.0,94810.0,0.001]
[1735312914426,0.05987374,94828.0,94810.0,0.053801]
[1735312914631,0.052792,94827.0,94812.0,0.052799]
[1735312915019,0.18339355,94836.0,94810.0,0.006]
[1735312915228,0.052787,94835.0,94816.0,0.052797]
[1735312915429,0.49051951,94836.0,94810.0,0.006]
[1735312915629,0.052796,94818.0,94810.0,0.001]
[1735312916525,0.002,94828.0,94781.0,0.1247]
[1735312916526,0.052792,94825.0,94781.0,0.1247]
[1735312916826,0.002,94827.0,94824.0,0.052793]
[1735312917026,0.002,94827.0,94795.0,0.052809]
[1735312917027,0.00956311,94822.0,94821.0,0.052795]
[1735312917232,0.1288913,94856.0,94850.0,0.052778]
[1735312918123,0.07104143,94851.0,94850.0,0.052778]
[1735312918331,4.3e-07,94851.0,94850.0,0.052778]
[1735312918525,0.00718618,94870.0,94841.0,0.24819714]
[1735312918729,0.05134533,94879.0,94860.0,0.24819714]
[1735312919527,0.05134533,94879.0,94870.0,0.052767]
[1735312919735,0.052763,94878.0,94850.0,0.25419714]
[1735312920025,0.05830511,94879.0,94860.0,0.24819714]
[1735312920226,0.00695978,94879.0,94874.0,0.052765]
[1735312920433,0.2462,94889.0,94874.0,0.052765]
[1735312920621,0.2462,94889.0,94875.0,0.052764]
[1735312920923,0.25344231,94889.0,94867.0,0.052769]
[1735312921130,0.002,94878.0,94876.0,0.052764]
[1735312922338,0.002,94878.0,94849.0,0.00721469]
[1735312922339,0.002,94878.0,94875.0,0.001]
[1735312922547,0.052764,94876.0,94875.0,0.001]
[1735312922952,0.052764,94876.0,94831.0,0.314069]
[1735312922953,0.40539962,94876.0,94831.0,0.314069]
[1735312923148,0.24819714,94870.0,94831.0,0.314069]
[1735312923450,0.304765,94875.0,94858.0,0.052774]
[1735312923747,0.052766,94869.0,94849.0,0.052777]
[1735312923939,0.12278,94875.0,94850.0,0.24819714]
[1735312924136,0.24819714,94910.0,94834.0,0.052785]
[1735312924137,0.14948046,94920.0,94860.0,0.24819714]
[1735312924338,0.14948046,94920.0,94879.0,0.24819714]
[1735312924543,0.3976776,94920.0,94860.0,0.24819714]
[1735312924748,0.10722107,94900.0,94882.0,0.052759]
[1735312925248,0.10722107,94900.0,94880.0,0.05276]
[1735312925249,0.052752,94894.0,94880.0,0.05276]
[1735312925444,0.10722107,94900.0,94870.0,0.24819714]
[1735312925950,0.10539629,94899.0,94850.0,0.24819714]
[1735312926139,0.004,94875.0,94840.0,0.24819714]
[1735312926336,0.056764,94875.0,94858.0,0.052773]
[1735312926546,0.052768,94867.0,94840.0,0.24819714]
[1735312926752,0.304,94875.0,94840.0,0.24819714]
[1735312926945,0.304,94875.0,94821.0,0.367423]
[1735312926946,0.10539073,94866.0,94821.0,0.314629]
[1735312927142,0.052779,94849.0,94837.0,0.052785]
[1735312927454,0.10542573,94865.0,94820.0,0.24819714]
[1735312927653,0.052769,94866.0,94840.0,0.25719714]
[1735312927951,0.052766,94872.0,94840.0,0.25719714]
[1735312928152,0.052766,94872.0,94860.0,0.052772]
[1735312928344,0.2376,94874.0,94850.0,0.24819714]
[1735312928545,0.2376,94874.0,94827.0,0.05279]
[1735312928546,0.2376,94874.0,94840.0,0.24819714]
[1735312928743,0.24819714,94870.0,94821.0,0.1244]
[1735312929043,0.052781,94845.0,94830.0,0.052788]
[1735312929244,0.052775,94855.0,94837.0,0.052785]
[1735312929451,0.001,94849.0,94842.0,0.052782]
[1735312929851,0.052782,94843.0,94830.0,0.052789]
[1735312930154,0.24819714,94870.0,94810.0,0.24819714]
[1735312930353,0.052782,94843.0,94831.0,0.052788]
[1735312930545,0.24819714,94850.0,94800.0,0.24819714]
[1735312930743,0.24819714,94850.0,94817.0,0.052796]
[1735312930744,0.052787,94834.0,94817.0,0.052796]
[1735312930953,0.052787,94834.0,94822.0,0.052793]
[1735312931347,0.24819714,94860.0,94800.0,0.24819714]
[1735312931651,0.10545742,94848.0,94813.0,0.052798]
[1735312931849,0.052793,94824.0,94805.0,0.052803]
[1735312932046,0.052796,94817.0,94805.0,0.052803]
[1735312932442,0.052795,94819.0,94790.0,0.00718332]
[1735312932648,0.052795,94819.0,94780.0,0.24819714]
[1735312932849,0.2417,94839.0,94800.0,0.25719714]
[1735312933049,0.24819714,94830.0,94800.0,0.009]
[1735312933560,0.052789,94831.0,94812.0,0.052798]
[1735312933852,0.54890102,94839.0,94790.0,0.25319714]
[1735312934043,0.10548578,94830.0,94800.0,0.052806]
[1735312934243,0.35368292,94830.0,94800.0,0.052806]
[1735312934446,0.54819714,94830.0,94805.0,0.008]
[1735312934647,0.052796,94817.0,94805.0,0.008]
[1735312934848,0.052796,94817.0,94800.0,0.052806]
[1735312936052,0.052787,94835.0,94790.0,0.24819714]
[1735312936359,0.052789,94829.0,94790.0,0.24819714]
[1735312936558,0.052789,94829.0,94816.0,0.052796]
[1735312936757,0.24885005,94839.0,94810.0,0.24819714]
[1735312936961,0.05278,94846.0,94834.0,0.052786]
[1735312937148,0.2577,94874.0,94820.0,0.24819714]
[1735312937353,0.24819714,94870.0,94820.0,0.24819714]
[1735312937554,0.1054602,94869.0,94820.0,0.24819714]
[1735312937750,0.38959016,94874.0,94830.0,0.24819714]
[1735312937949,0.38887016,94874.0,94840.0,0.24819714]
[1735312938153,0.21429342,94875.0,94869.0,0.052767]
[1735312938453,0.32458746,94898.0,94843.0,0.052782]
[1735312938454,0.18375296,94877.0,94843.0,0.052782]
[1735312938655,0.1054274,94874.0,94820.0,0.24919714]
[1735312938955,0.24819714,94870.0,94820.0,0.25019714]
[1735312939163,0.24819714,94860.0,94840.0,0.001]
[1735312939461,0.1263,94859.0,94840.0,0.001]
[1735312939764,0.47323296,94859.0,94840.0,0.001]
[1735312939960,0.052778,94851.0,94840.0,0.001]
[1735312940258,0.052779,94850.0,94840.0,0.001]
[1735312940855,0.052779,94849.0,94840.0,0.001]
[1735312941163,0.052779,94848.0,94833.0,0.052787]
[1735312941955,0.37958102,94859.0,94840.0,0.001]
[1735312942162,0.052783,94842.0,94840.0,0.001]
[1735312942362,0.052783,94842.0,94825.0,0.052792]
[1735312942559,0.052783,94842.0,94826.0,0.052791]
[1735312942750,0.052783,94842.0,94814.0,0.052798]
[1735312942952,0.005,94850.0,94810.0,0.24819714]
[1735312943160,0.005,94850.0,94848.0,0.052779]
[1735312944065,0.1160455,94868.0,94840.0,0.24819714]
[1735312944257,0.18375495,94867.0,94866.0,0.052769]
[1735312944458,0.18375495,94888.0,94878.0,0.052762]
[1735312944655,0.2404,94889.0,94858.0,0.24819714]
[1735312944857,0.13099295,94888.0,94858.0,0.24819714]
[1735312945163,0.13099295,94888.0,94881.0,0.05276]
[1735312945561,0.13099295,94888.0,94870.0,0.24819714]
[1735312946067,0.13099295,94888.0,94886.0,0.052758]
[1735312946068,0.13199295,94888.0,94886.0,0.052758]
[1735312946451,0.1,94900.0,94899.0,0.052751]
[1735312946854,0.23199295,94900.0,94899.0,0.052751]
[1735312947765,0.1226,94928.0,94890.0,0.30095314]
[1735312947952,0.13199295,94927.0,94913.0,0.052743]
[1735312948156,0.13199295,94927.0,94879.0,0.1315]
[1735312948157,0.13199295,94927.0,94900.0,0.24819714]
[1735312948559,0.052738,94923.0,94900.0,0.24819714]
[1735312948869,0.052738,94923.0,94890.0,0.24819714]
[1735312949064,0.13199295,94927.0,94917.0,0.052741]
[1735312949260,0.13199295,94927.0,94916.0,0.052741]
[1735312949455,0.13199295,94927.0,94900.0,0.24819714]
[1735312949661,0.24819714,94920.0,94870.0,0.24819714]
[1735312950166,0.54819714,94920.0,94870.0,0.24819714]
[1735312950462,0.052748,94905.0,94900.0,0.001]
[1735312950867,0.002,94920.0,94870.0,0.24819714]
[1735312951061,0.052743,94914.0,94880.0,0.24819714]
[1735312951259,0.052744,94912.0,94894.0,0.052753]
[1735312951461,0.052748,94906.0,94894.0,0.052753]
[1735312951667,0.052748,94906.0,94887.0,0.052758]
[1735312951865,0.02548495,94905.0,94857.0,0.1282]
[1735312952167,0.24819714,94900.0,94850.0,0.24819714]
[1735312952371,0.24819714,94890.0,94859.0,0.052773]
[1735312952562,0.24819714,94890.0,94831.0,0.1191]
[1735312952563,0.052763,94878.0,94862.0,0.052771]
[1735312953072,0.052765,94875.0,94862.0,0.052771]
[1735312953363,0.10540739,94888.0,94854.0,0.052776]
[1735312953564,0.10540739,94888.0,94850.0,0.005]
[1735312953565,0.052766,94873.0,94850.0,0.005]
[1735312953762,0.02548495,94888.0,94860.0,0.24819714]
[1735312953963,0.02548495,94888.0,94870.0,0.052767]
[1735312954267,0.052761,94881.0,94870.0,0.052767]
[1735312954457,0.1297592,94889.0,94875.0,0.052764]
[1735312954956,0.001,94888.0,94862.0,0.004]
[1735312955567,0.005,94888.0,94873.0,0.052765]
[1735312955969,0.005,94888.0,94854.0,0.052776]
[1735312956265,0.305,94888.0,94860.0,0.052772]
[1735312956469,0.305,94888.0,94851.0,0.06212229]
[1735312956470,0.052772,94862.0,94851.0,0.06212229]
[1735312956671,0.052772,94862.0,94851.0,0.052777]
[1735312957058,0.24819714,94890.0,94862.0,0.001]
[1735312957371,0.052771,94863.0,94862.0,0.001]
[1735312957571,0.052775,94856.0,94820.0,0.24819714]
[1735312957866,0.1225,94878.0,94851.0,0.001]
[1735312958170,0.052772,94862.0,94851.0,0.001]
[1735312958373,0.052772,94862.0,94860.0,0.004]
[1735312959271,0.06174513,94862.0,94851.0,0.001]
[1735312959573,0.00897313,94862.0,94851.0,0.001]
[1735312959869,0.052773,94860.0,94847.0,0.052779]
[1735312960069,0.002,94862.0,94820.0,0.24819714]
[1735312960261,0.050275,94856.0,94843.0,0.052782]
[1735312960457,0.003,94862.0,94846.0,0.05278]
[1735312960761,0.003,94862.0,94830.0,0.24819714]
[1735312960969,0.002,94862.0,94858.0,0.052773]
[1735312961461,0.01123383,94862.0,94858.0,0.052773]
[1735312961661,0.052767,94870.0,94858.0,0.052773]
[1735312961971,0.13176508,94878.0,94850.0,0.24819714]
[1735312962466,0.13176508,94878.0,94864.0,0.05277]
[1735312962661,0.13176508,94878.0,94850.0,0.24819714]
[1735312962863,0.052763,94877.0,94866.0,0.052769]
[1735312963063,0.00926508,94878.0,94874.0,0.052765]
[1735312963269,0.21429342,94908.0,94878.0,0.052762]
[1735312963270,0.1245,94904.0,94878.0,0.052762]
[1735312963464,0.052754,94894.0,94878.0,0.052762]
[1735312963662,0.052763,94878.0,94861.0,0.052772]
[1735312963869,0.15816506,94899.0,94864.0,0.05277]
[1735312963870,0.052761,94881.0,94864.0,0.05277]
[1735312964071,0.001,94877.0,94860.0,0.24819714]
[1735312964371,0.001,94877.0,94830.0,0.24819714]
[1735312964571,0.1245,94889.0,94840.0,0.24819714]
[1735312964867,0.10540795,94888.0,94861.0,0.052772]
[1735312965067,0.40540795,94888.0,94855.0,0.052775]
[1735312965262,0.24819714,94880.0,94830.0,0.24819714]
[1735312965462,0.052767,94870.0,94857.0,0.052774]
[1735312965666,0.052767,94870.0,94830.0,0.3]
[1735312965667,0.1245,94889.0,94850.0,0.24819714]
[1735312965863,0.00903161,94890.0,94878.0,0.052762]
[1735312966071,0.052756,94891.0,94880.0,0.052761]
[1735312966265,0.18426644,94901.0,94880.0,0.052761]
[1735312966266,0.002,94888.0,94881.0,0.052761]
[1735312966461,0.002,94888.0,94887.0,0.052758]
[1735312966665,0.002,94888.0,94861.0,0.1275]
[1735312966870,0.002,94888.0,94862.0,0.052771]
[1735312967058,0.002,94888.0,94861.0,0.1275]
[1735312967059,0.002,94888.0,94884.0,0.052759]
[1735312967259,0.002,94888.0,94861.0,0.4275]
[1735312967561,0.003,94888.0,94887.0,0.052758]
[1735312967962,0.18426644,94918.0,94870.0,0.24819714]
[1735312968276,0.005,94891.0,94890.0,0.052756]
[1735312968864,0.052747,94907.0,94901.0,0.05275]
[1735312969068,0.00896687,94918.0,94912.0,0.052744]
[1735312969368,0.18426644,94928.0,94919.0,0.05274]
[1735312970168,0.00926643,94928.0,94920.0,0.052739]
[1735312970368,0.052732,94933.0,94900.0,0.24819714]
[1735312970574,0.001,94928.0,94902.0,0.052749]
[1735312970960,0.18426644,94944.0,94910.0,0.24819714]
[1735312971166,0.001,94928.0,94920.0,0.24819714]
[1735312971781,0.004,94928.0,94927.0,0.052735]
[1735312971980,0.00931789,94944.0,94943.0,0.052727]
[1735312972274,0.004,94947.0,94946.0,0.052725]
[1735312973162,0.004,94947.0,94889.0,0.3768828]
[1735312973163,0.004,94947.0,94910.0,0.24819714]
[1735312973381,0.00916352,94948.0,94940.0,0.052728]
[1735312973382,0.004,94946.0,94940.0,0.052728]
[1735312973567,0.004,94946.0,94941.0,0.052727]
[1735312974266,0.00916352,94948.0,94928.0,0.048735]
[1735312974267,0.052728,94941.0,94928.0,0.048735]
[1735312974472,0.001,94947.0,94930.0,0.24819714]
[1735312974672,0.001,94947.0,94941.0,0.052727]
[1735312975073,0.001,94947.0,94941.0,0.053727]
[1735312975378,0.001,94947.0,94943.0,0.052726]
[1735312975978,0.002,94947.0,94943.0,0.052726]
[1735312976179,0.001,94947.0,94943.0,0.052726]
[1735312976778,0.001,94947.0,94936.0,0.05273]
[1735312977373,0.001,94947.0,94943.0,0.001]
[1735312977571,0.01024886,94947.0,94943.0,0.001]
[1735312977776,0.01024886,94947.0,94922.0,0.052738]
[1735312977978,0.01024886,94947.0,94936.0,0.001]
[1735312978173,0.00924886,94947.0,94936.0,0.001]
[1735312978387,0.052719,94958.0,94943.0,0.052726]
[1735312978674,0.24819714,94970.0,94943.0,0.052726]
[1735312978879,0.3,94970.0,94943.0,0.052726]
[1735312979080,0.004,94947.0,94943.0,0.052726]
[1735312979483,0.004,94947.0,94943.0,0.054726]
[1735312979671,0.004,94947.0,94946.0,0.052725]
[1735312980583,0.052715,94964.0,94946.0,0.052725]
[1735312981082,0.052715,94964.0,94948.0,0.052724]
[1735312981472,0.052711,94972.0,94946.0,0.006]
[1735312981671,0.35456,94979.0,94960.0,0.052717]
[1735312981672,0.35524,94979.0,94960.0,0.052717]
[1735312981882,0.10531304,94978.0,94960.0,0.052717]
[1735312982084,0.24819714,94970.0,94890.0,0.24819714]
[1735312982275,0.24819714,94930.0,94913.0,0.052743]
[1735312982584,0.24819714,94940.0,94889.0,0.3768828]
[1735312982881,0.24819714,94920.0,94889.0,0.3774428]
[1735312983080,0.127,94929.0,94895.0,0.08258117]
[1735312983081,0.052753,94897.0,94895.0,0.08258117]
[1735312983288,0.052745,94911.0,94839.0,0.123]
[1735312983289,0.1315,94896.0,94839.0,0.123]
[1735312983481,0.24819714,94880.0,94839.0,0.123]
[1735312983685,0.052775,94857.0,94839.0,0.052784]
[1735312983981,0.052775,94857.0,94842.0,0.052783]
[1735312984179,0.24819714,94870.0,94836.0,0.052786]
[1735312984379,0.052775,94857.0,94832.0,0.2504652]
[1735312984579,0.052775,94857.0,94838.0,0.052785]
[1735312984784,0.10543184,94869.0,94840.0,0.24819714]
[1735312984985,0.00896351,94870.0,94852.0,0.052777]
[1735312985171,0.60263714,94880.0,94849.0,0.052779]
[1735312985375,0.10542462,94869.0,94842.0,0.052783]
[1735312985571,0.052775,94857.0,94842.0,0.052783]
[1735312985983,0.09191088,94857.0,94847.0,0.05278]
[1735312986281,0.09191088,94857.0,94855.0,0.052776]
[1735312986981,0.09191088,94857.0,94832.0,0.002]
[1735312987174,0.00899393,94857.0,94849.0,0.004]
[1735312987375,0.09191088,94858.0,94820.0,0.24819714]
[1735312987585,0.052778,94853.0,94839.0,0.009]
[1735312987978,0.09191088,94854.0,94839.0,0.009]
[1735312988285,0.09191088,94854.0,94850.0,0.052778]
[1735312988485,0.001,94857.0,94850.0,0.052779]
[1735312988486,0.09191088,94851.0,94850.0,0.052779]
[1735312989181,0.15318481,94863.0,94850.0,0.30935424]
[1735312989387,0.15318481,94863.0,94862.0,0.052772]
[1735312989585,0.15318481,94876.0,94841.0,0.180884]
[1735312989779,0.15318481,94876.0,94860.0,0.24819714]
[1735312989979,0.15318481,94876.0,94874.0,0.052765]
[1735312990176,0.00899209,94898.0,94860.0,0.54819714]
[1735312990383,0.00899209,94898.0,94897.0,0.052753]
[1735312990586,0.16175081,94910.0,94897.0,0.052753]
[1735312990886,0.00353342,94899.0,94897.0,0.052753]
[1735312991279,0.00924945,94919.0,94897.0,0.052753]
[1735312991488,0.21076,94918.0,94912.0,0.052744]
[1735312991693,0.21076,94918.0,94917.0,0.052742]
[1735312991881,0.21076,94918.0,94909.0,0.24819714]
[1735312992086,0.21076,94918.0,94913.0,0.052744]
[1735312992484,0.21076,94918.0,94917.0,0.052742]
[1735312992791,0.21076,94918.0,94897.0,0.002]
[1735312992792,0.263501,94918.0,94897.0,0.002]
[1735312992989,0.054741,94918.0,94880.0,0.052762]
[1735312993184,0.24819714,94910.0,94860.0,0.24819714]
[1735312993380,0.052749,94904.0,94869.0,0.052768]
[1735312993691,0.54819714,94910.0,94871.0,0.052767]
[1735312993692,0.386006,94909.0,94871.0,0.052767]
[1735312993881,0.052761,94882.0,94873.0,0.052766]
[1735312994081,0.386006,94909.0,94905.0,0.052748]
[1735312994082,0.33326,94909.0,94905.0,0.052748]
[1735312994288,0.052753,94898.0,94886.0,0.052758]
[1735312994488,0.05132577,94903.0,94886.0,0.052758]
[1735312994994,0.05132577,94903.0,94880.0,0.006]
[1735312994995,0.24819714,94900.0,94880.0,0.006]
[1735312995179,0.31415906,94902.0,94880.0,0.006]
[1735312995493,0.20876,94902.0,94880.0,0.006]
[1735312995793,0.052751,94900.0,94883.0,0.05276]
[1735312996001,0.052751,94900.0,94880.0,0.006]
[1735312996180,0.20876,94902.0,94880.0,0.54819714]
[1735312996383,0.20876,94902.0,94901.0,0.05275]
[1735312997090,0.1224,94938.0,94901.0,0.35275]
[1735312997291,0.052732,94934.0,94925.0,0.052737]
[1735312997494,0.052733,94933.0,94900.0,0.24819714]
[1735312997685,0.052733,94933.0,94901.0,0.009]
[1735312997993,0.24819714,94930.0,94902.0,0.05275]
[1735312998192,0.052743,94915.0,94901.0,0.014]
[1735312998692,0.20876,94914.0,94901.0,0.014]
[1735312999290,0.052744,94912.0,94901.0,0.005]
[1735312999884,0.20876,94914.0,94901.0,0.008]
[1735313000085,0.20876,94914.0,94906.0,0.052748]
[1735313000279,0.20876,94914.0,94901.0,0.008]
[1735313000280,0.20876,94914.0,94908.0,0.052746]
[1735313000485,0.261503,94914.0,94901.0,0.004]
[1735313000686,0.20876,94914.0,94903.0,0.052749]
[1735313000903,0.20876,94914.0,94906.0,0.052748]
[1735313001086,0.20876,94914.0,94909.0,0.052746]
[1735313001487,0.156014,94913.0,94901.0,0.003]
[1735313001989,0.156014,94913.0,94910.0,0.052745]
[1735313002189,0.156014,94913.0,94912.0,0.052744]
[1735313002493,0.156014,94913.0,94901.0,0.004]
[1735313002690,0.156014,94913.0,94911.0,0.052745]
[1735313003496,0.157014,94913.0,94911.0,0.052745]
[1735313003693,0.158014,94913.0,94911.0,0.052745]
[1735313004088,0.001,94913.0,94902.0,0.052749]
[1735313004291,0.156014,94912.0,94901.0,0.009]
[1735313004487,0.156014,94912.0,94904.0,0.052748]
[1735313004694,0.156014,94912.0,94910.0,0.052745]
[1735313006895,0.156014,94912.0,94910.0,0.058745]
[1735313007193,0.052728,94941.0,94913.0,0.052744]
[1735313007398,0.052728,94941.0,94910.0,0.31050214]
[1735313007601,0.052724,94949.0,94922.0,0.052738]
[1735313007899,0.21555094,94956.0,94930.0,0.24819714]
[1735313008197,0.22522104,94956.0,94946.0,0.052725]
[1735313008411,0.22484082,94956.0,94933.0,0.052732]
[1735313008598,0.052725,94947.0,94936.0,0.052731]
[1735313008898,0.052726,94945.0,94936.0,0.052731]
[1735313009094,0.052721,94954.0,94930.0,0.001]
[1735313009298,0.01528988,94956.0,94952.0,0.052722]
[1735313009596,0.02028988,94956.0,94952.0,0.052722]
[1735313009801,0.02028988,94956.0,94954.0,0.052721]
[1735313010202,0.02028988,94956.0,94933.0,0.002]
[1735313010502,0.01628988,94956.0,94933.0,0.001]
[1735313010691,0.01628988,94956.0,94954.0,0.052721]
[1735313010887,0.007,94956.0,94954.0,0.052721]
[1735313012100,0.00927664,94962.0,94957.0,0.052719]
[1735313012293,0.18476071,94967.0,94962.0,0.052717]
[1735313012495,0.1291,94975.0,94962.0,0.052717]
[1735313012698,0.13868809,94975.0,94962.0,0.052717]
[1735313012894,0.00958809,94975.0,94960.0,0.24819714]
[1735313013108,0.18476071,94978.0,94976.0,0.052709]
[1735313014008,0.18476071,94978.0,94954.0,0.005]
[1735313014199,0.052713,94968.0,94954.0,0.057721]
[1735313014402,0.24819714,94970.0,94956.0,0.05272]
[1735313014605,0.05271,94974.0,94956.0,0.05272]
[1735313015103,0.052715,94966.0,94947.0,0.052724]
[1735313015405,0.052715,94966.0,94954.0,0.002]
[1735313015793,0.052715,94966.0,94926.0,0.3544]
[1735313015996,0.10530195,94965.0,94941.0,0.052728]
[1735313016199,0.10530195,94965.0,94910.0,0.24819714]
[1735313016200,0.052718,94959.0,94910.0,0.24819714]
[1735313016498,0.052718,94959.0,94954.0,0.003]
[1735313017300,0.05273,94938.0,94894.0,0.1265]
[1735313017501,0.24819714,94955.0,94918.0,0.052741]
[1735313017807,0.54819714,94955.0,94918.0,0.052741]
[1735313018004,0.10531137,94954.0,94918.0,0.052741]
[1735313018406,0.40531137,94954.0,94918.0,0.052741]
[1735313018707,0.05273,94938.0,94919.0,0.05274]
[1735313019103,0.18476071,94952.0,94919.0,0.05274]
[1735313019313,0.18476071,94952.0,94895.0,0.009509]
[1735313019314,0.24819714,94930.0,94895.0,0.009509]
[1735313019498,0.10533411,94937.0,94895.0,0.052754]
[1735313019499,0.052746,94909.0,94895.0,0.052754]
[1735313019702,0.052745,94912.0,94891.0,0.052756]
[1735313019913,0.052745,94912.0,94871.0,0.00946434]
[1735313020206,0.052745,94912.0,94880.0,0.24819714]
[1735313020596,0.1225,94928.0,94913.0,0.052744]
[1735313020803,0.175236,94928.0,94913.0,0.052744]
[1735313021207,0.175236,94928.0,94890.0,0.24819714]
[1735313021509,0.1225,94928.0,94916.0,0.052742]
[1735313021711,0.1225,94928.0,94919.0,0.007]
[1735313021905,0.052739,94923.0,94919.0,0.007]
[1735313022105,0.18476071,94926.0,94890.0,0.24819714]
[1735313022318,0.18476071,94926.0,94913.0,0.004]
[1735313022504,0.18476071,94926.0,94918.0,0.052741]
[1735313023012,0.18476071,94926.0,94919.0,0.002]
[1735313023210,0.05130251,94927.0,94919.0,0.002]
[1735313023211,0.15419665,94922.0,94921.0,0.052739]
[1735313023435,0.15419665,94922.0,94919.0,0.002]
[1735313023605,0.052746,94909.0,94860.0,0.24819714]
[1735313023806,0.052746,94909.0,94890.0,0.052756]
[1735313024108,0.24819714,94920.0,94892.0,0.052755]
[1735313024304,0.1053491,94908.0,94870.0,0.24819714]
[1735313024610,0.15419665,94905.0,94891.0,0.052756]
[1735313024812,0.15419665,94905.0,94881.0,0.052762]
[1735313025016,0.052751,94901.0,94881.0,0.052762]
[1735313025204,0.052751,94901.0,94853.0,0.5535]